[Event "Titled Tuesday Blitz February 14 Early 2023"]
[White "Balint, Vilmos"]
[Black "Bettalli, Francesco"]
[WhiteFideId "718050"]
[BlackFideId "2816453"]
[WhiteElo "2169"]
[BlackElo "2252"]
[Result "0-1"]
[Round "03"]
[TimeControl "180+2"]
[Date "2023.02.15"]
[WhiteClock "0:01:25"]
[BlackClock "0:02:20"]

1. e4 {[%clk 0:02:53]}  e5 {[%clk 0:02:59]} 2. f4 {[%clk 0:02:53]}  d5 {[%clk 0:02:59]} 3. exd5 {[%clk 0:02:52]}  exf4 {[%clk 0:03:00]} 4. Nf3 {[%clk 0:02:52]}  Nf6 {[%clk 0:03:01]} 5. d4 {[%clk 0:02:52]}  Nxd5 {[%clk 0:03:00]} 6. Bd3 {[%clk 0:02:52]}  Be7 {[%clk 0:02:59]} 7. O-O {[%clk 0:02:52]}  O-O {[%clk 0:02:59]} 8. c4 {[%clk 0:02:52]}  Ne3 {[%clk 0:03:00]} 9. Bxe3 {[%clk 0:02:52]}  fxe3 {[%clk 0:03:01]} 10. Qe2 {[%clk 0:02:53]}  c5 {[%clk 0:03:02]} 11. d5 {[%clk 0:02:52]}  Bf6 {[%clk 0:03:02]} 12. Nc3 {[%clk 0:02:52]}  Re8 {[%clk 0:03:03]} 13. Rfe1 {[%clk 0:02:52]}  Bd4 {[%clk 0:03:02]} 14. Rad1 {[%clk 0:02:51]}  a6 {[%clk 0:03:02]} 15. Bb1 {[%clk 0:02:48]}  Bg4 {[%clk 0:03:02]} 16. h3 {[%clk 0:02:46]}  Bxf3 {[%clk 0:03:02]} 17. Qxf3 {[%clk 0:02:46]}  e2+ {[%clk 0:03:03]} 18. Rxd4 {[%clk 0:02:46]}  cxd4 {[%clk 0:03:03]} 19. Nxe2 {[%clk 0:02:46]}  b5 {[%clk 0:03:03]} 20. Rf1 {[%clk 0:02:42]}  Qe7 {[%clk 0:02:56]} 21. Nxd4 {[%clk 0:02:36]}  Nd7 {[%clk 0:02:54]} 22. Nf5 {[%clk 0:02:34]}  Qc5+ {[%clk 0:02:54]} 23. Kh1 {[%clk 0:02:33]}  Ne5 {[%clk 0:02:50]} 24. Qg3 {[%clk 0:02:12]}  Ng6 {[%clk 0:02:49]} 25. h4 {[%clk 0:02:03]}  Qxc4 {[%clk 0:02:47]} 26. Bd3 {[%clk 0:01:59]}  Qxd5 {[%clk 0:02:33]} 27. h5 {[%clk 0:01:59]}  Rad8 {[%clk 0:02:33]} 28. hxg6 {[%clk 0:01:55]}  hxg6 {[%clk 0:02:34]} 29. Bc2 {[%clk 0:01:37]}  gxf5 {[%clk 0:02:32]} 30. Rxf5 {[%clk 0:01:37]}  Qd2 {[%clk 0:02:27]} 31. Rg5 {[%clk 0:01:28]}  Qe1+ {[%clk 0:02:27]} 32. Qxe1 {[%clk 0:01:28]}  Rxe1+ {[%clk 0:02:28]} 33. Kh2 {[%clk 0:01:28]}  Rd2 {[%clk 0:02:27]} 34. Bb3 {[%clk 0:01:29]}  Rxb2 {[%clk 0:02:24]} 35. Rf5 {[%clk 0:01:28]}  Rxb3 {[%clk 0:02:16]} 36. axb3 {[%clk 0:01:29]}  Re3 {[%clk 0:02:17]} 37. Rc5 {[%clk 0:01:27]}  Rxb3 {[%clk 0:02:16]} 38. Rc8+ {[%clk 0:01:28]}  Kh7 {[%clk 0:02:17]} 39. Rc7 {[%clk 0:01:28]}  Kg6 {[%clk 0:02:17]} 40. Ra7 {[%clk 0:01:29]}  Ra3 {[%clk 0:02:17]} 41. g4 {[%clk 0:01:28]}  b4 {[%clk 0:02:17]} 42. Rb7 {[%clk 0:01:28]}  a5 {[%clk 0:02:17]} 43. Kg2 {[%clk 0:01:29]}  b3 {[%clk 0:02:17]} 44. Kf2 {[%clk 0:01:29]}  Ra2+ {[%clk 0:02:18]} 45. Ke3 {[%clk 0:01:30]}  a4 {[%clk 0:02:19]} 46. Kd4 {[%clk 0:01:30]}  b2 {[%clk 0:02:19]} 47. Kc3 {[%clk 0:01:30]}  a3 {[%clk 0:02:20]} 48. Kc2 {[%clk 0:01:25]}  Ra1 {[%clk 0:02:20]} 0-1


[Site "https://www.chess.com"]

[Event "Titled Tuesday Blitz February 14 Early 2023"]
[White "Fajdetic, Hrvoje"]
[Black "dodoucb"]
[WhiteFideId "14501945"]
[WhiteElo "2151"]
[BlackElo "2485"]
[Result "0-1"]
[Round "03"]
[TimeControl "180+2"]
[Date "2023.02.15"]
[WhiteClock "0:00:08"]
[BlackClock "0:00:15"]

1. d4 {[%clk 0:02:47]}  d5 {[%clk 0:02:59]} 2. Bf4 {[%clk 0:02:45]}  Nf6 {[%clk 0:02:59]} 3. e3 {[%clk 0:02:45]}  e6 {[%clk 0:02:59]} 4. Nf3 {[%clk 0:02:45]}  Bd6 {[%clk 0:03:00]} 5. Bg3 {[%clk 0:02:46]}  O-O {[%clk 0:02:59]} 6. Bd3 {[%clk 0:02:46]}  c5 {[%clk 0:02:59]} 7. c3 {[%clk 0:02:46]}  b6 {[%clk 0:02:57]} 8. Qe2 {[%clk 0:02:43]}  Bb7 {[%clk 0:02:53]} 9. Nbd2 {[%clk 0:02:43]}  a6 {[%clk 0:02:43]} 10. e4 {[%clk 0:02:39]}  dxe4 {[%clk 0:02:38]} 11. Nxe4 {[%clk 0:02:40]}  Nxe4 {[%clk 0:02:38]} 12. Bxe4 {[%clk 0:02:41]}  Bxe4 {[%clk 0:02:38]} 13. Qxe4 {[%clk 0:02:42]}  Ra7 {[%clk 0:02:39]} 14. O-O-O {[%clk 0:02:13]}  cxd4 {[%clk 0:02:09]} 15. Rxd4 {[%clk 0:02:09]}  Rd7 {[%clk 0:02:08]} 16. Bxd6 {[%clk 0:01:34]}  Rxd6 {[%clk 0:02:04]} 17. Rxd6 {[%clk 0:01:34]}  Qxd6 {[%clk 0:02:04]} 18. Ng5 {[%clk 0:01:34]}  g6 {[%clk 0:01:55]} 19. Qh4 {[%clk 0:01:25]}  h5 {[%clk 0:01:55]} 20. Ne4 {[%clk 0:01:12]}  Qe5 {[%clk 0:01:52]} 21. Re1 {[%clk 0:01:07]}  Kg7 {[%clk 0:01:48]} 22. f4 {[%clk 0:01:00]}  Qf5 {[%clk 0:01:42]} 23. h3 {[%clk 0:00:52]}  Nc6 {[%clk 0:01:35]} 24. Ng3 {[%clk 0:00:19]}  Qf6 {[%clk 0:01:11]} 25. Qxf6+ {[%clk 0:00:15]}  Kxf6 {[%clk 0:01:11]} 26. Ne4+ {[%clk 0:00:15]}  Ke7 {[%clk 0:01:11]} 27. Rd1 {[%clk 0:00:15]}  Rd8 {[%clk 0:00:51]} 28. Rxd8 {[%clk 0:00:14]}  Kxd8 {[%clk 0:00:52]} 29. Nd6 {[%clk 0:00:14]}  f6 {[%clk 0:00:46]} 30. Nc4 {[%clk 0:00:14]}  b5 {[%clk 0:00:45]} 31. Ne3 {[%clk 0:00:15]}  Kd7 {[%clk 0:00:42]} 32. g4 {[%clk 0:00:15]}  hxg4 {[%clk 0:00:39]} 33. hxg4 {[%clk 0:00:16]}  e5 {[%clk 0:00:38]} 34. f5 {[%clk 0:00:14]}  gxf5 {[%clk 0:00:36]} 35. gxf5 {[%clk 0:00:15]}  Kd6 {[%clk 0:00:29]} 36. Ng4 {[%clk 0:00:12]}  Ke7 {[%clk 0:00:24]} 37. Kd2 {[%clk 0:00:12]}  Kf7 {[%clk 0:00:23]} 38. Ke3 {[%clk 0:00:12]}  Na5 {[%clk 0:00:20]} 39. b3 {[%clk 0:00:12]}  Nb7 {[%clk 0:00:17]} 40. Ke4 {[%clk 0:00:12]}  Nd6+ {[%clk 0:00:18]} 41. Kd5 {[%clk 0:00:11]}  Nxf5 {[%clk 0:00:19]} 42. Nxe5+ {[%clk 0:00:10]}  fxe5 {[%clk 0:00:18]} 43. Kxe5 {[%clk 0:00:11]}  Ne3 {[%clk 0:00:15]} 44. Kd4 {[%clk 0:00:10]}  Nc2+ {[%clk 0:00:15]} 45. Kc5 {[%clk 0:00:10]}  Ke6 {[%clk 0:00:11]} 46. Kb6 {[%clk 0:00:10]}  Na3 {[%clk 0:00:12]} 47. Kxa6 {[%clk 0:00:10]}  Kd5 {[%clk 0:00:12]} 48. Ka5 {[%clk 0:00:10]}  Kc5 {[%clk 0:00:12]} 49. Ka6 {[%clk 0:00:08]}  Nb1 {[%clk 0:00:13]} 50. c4 {[%clk 0:00:07]}  b4 {[%clk 0:00:13]} 51. Ka5 {[%clk 0:00:07]}  Nc3 {[%clk 0:00:13]} 52. Ka6 {[%clk 0:00:07]}  Nxa2 {[%clk 0:00:13]} 53. Ka5 {[%clk 0:00:08]}  Nc1 {[%clk 0:00:13]} 54. Ka4 {[%clk 0:00:08]}  Nd3 {[%clk 0:00:13]} 55. Ka5 {[%clk 0:00:08]}  Nb2 {[%clk 0:00:14]} 56. Ka6 {[%clk 0:00:08]}  Nxc4 {[%clk 0:00:14]} 57. bxc4 {[%clk 0:00:06]}  Kxc4 {[%clk 0:00:15]} 58. Ka5 {[%clk 0:00:06]}  b3 {[%clk 0:00:15]} 59. Ka4 {[%clk 0:00:07]}  b2 {[%clk 0:00:16]} 60. Ka3 {[%clk 0:00:08]}  b1=Q {[%clk 0:00:15]} 0-1


[Site "https://www.chess.com"]

[Event "Titled Tuesday Blitz February 14 Early 2023"]
[White "AyMitecK"]
[Black "Schut, Han"]
[BlackFideId "1005561"]
[WhiteElo "2484"]
[BlackElo "2101"]
[Result "1-0"]
[Round "03"]
[TimeControl "180+2"]
[Date "2023.02.15"]
[WhiteClock "0:01:48"]
[BlackClock "0:01:08"]

1. e4 {[%clk 0:03:00]}  c5 {[%clk 0:02:58]} 2. a3 {[%clk 0:02:59]}  g6 {[%clk 0:02:54]} 3. h4 {[%clk 0:02:57]}  Bg7 {[%clk 0:02:53]} 4. Bc4 {[%clk 0:02:52]}  Nc6 {[%clk 0:02:49]} 5. Nc3 {[%clk 0:02:51]}  Nf6 {[%clk 0:02:45]} 6. Nf3 {[%clk 0:02:50]}  e6 {[%clk 0:02:30]} 7. Ba2 {[%clk 0:02:35]}  d5 {[%clk 0:02:24]} 8. d3 {[%clk 0:02:32]}  dxe4 {[%clk 0:01:58]} 9. Nxe4 {[%clk 0:02:31]}  Nxe4 {[%clk 0:01:57]} 10. dxe4 {[%clk 0:02:32]}  Qxd1+ {[%clk 0:01:57]} 11. Kxd1 {[%clk 0:02:32]}  O-O {[%clk 0:01:52]} 12. Ke2 {[%clk 0:02:31]}  e5 {[%clk 0:01:48]} 13. c3 {[%clk 0:02:30]}  Bg4 {[%clk 0:01:48]} 14. Be3 {[%clk 0:02:29]}  b6 {[%clk 0:01:47]} 15. Bd5 {[%clk 0:02:29]}  Rac8 {[%clk 0:01:44]} 16. Rhd1 {[%clk 0:02:26]}  Ne7 {[%clk 0:01:40]} 17. Bb3 {[%clk 0:02:15]}  Kh8 {[%clk 0:01:32]} 18. Ke1 {[%clk 0:02:04]}  Rcd8 {[%clk 0:01:19]} 19. Rxd8 {[%clk 0:01:56]}  Rxd8 {[%clk 0:01:20]} 20. Ng5 {[%clk 0:01:49]}  Be6 {[%clk 0:01:07]} 21. Bxe6 {[%clk 0:01:48]}  fxe6 {[%clk 0:01:08]} 22. Nf7+ {[%clk 0:01:48]} 1-0


[Site "https://www.chess.com"]

[Event "Titled Tuesday Blitz February 14 Early 2023"]
[White "Rios Escobar, Adan"]
[Black "Mazurkiewicz, Michal"]
[WhiteFideId "3403645"]
[BlackFideId "1124943"]
[WhiteElo "2234"]
[BlackElo "2145"]
[Result "1/2-1/2"]
[Round "03"]
[TimeControl "180+2"]
[Date "2023.02.15"]
[WhiteClock "0:00:05"]
[BlackClock "0:00:14"]

1. d4 {[%clk 0:03:00]}  Nf6 {[%clk 0:02:53]} 2. g3 {[%clk 0:03:01]}  g6 {[%clk 0:02:51]} 3. Bg2 {[%clk 0:03:01]}  Bg7 {[%clk 0:02:52]} 4. e4 {[%clk 0:03:02]}  d6 {[%clk 0:02:51]} 5. Ne2 {[%clk 0:03:02]}  O-O {[%clk 0:02:51]} 6. O-O {[%clk 0:03:03]}  c5 {[%clk 0:02:51]} 7. dxc5 {[%clk 0:03:03]}  dxc5 {[%clk 0:02:51]} 8. e5 {[%clk 0:03:03]}  Nfd7 {[%clk 0:02:48]} 9. f4 {[%clk 0:03:04]}  Nb6 {[%clk 0:02:48]} 10. Nbc3 {[%clk 0:02:57]}  Nc6 {[%clk 0:02:47]} 11. Be3 {[%clk 0:02:53]}  c4 {[%clk 0:02:38]} 12. Qxd8 {[%clk 0:02:30]}  Rxd8 {[%clk 0:02:37]} 13. Rad1 {[%clk 0:02:31]}  Bf5 {[%clk 0:02:33]} 14. Ne4 {[%clk 0:02:27]}  Nd5 {[%clk 0:02:28]} 15. Bf2 {[%clk 0:02:01]}  Ncb4 {[%clk 0:02:28]} 16. Nd4 {[%clk 0:01:52]}  f6 {[%clk 0:01:56]} 17. exf6 {[%clk 0:01:49]}  exf6 {[%clk 0:01:51]} 18. a3 {[%clk 0:01:47]}  Nc6 {[%clk 0:01:50]} 19. Nxf5 {[%clk 0:01:46]}  gxf5 {[%clk 0:01:45]} 20. Rxd5 {[%clk 0:01:42]}  Rxd5 {[%clk 0:01:46]} 21. Nxf6+ {[%clk 0:01:41]}  Bxf6 {[%clk 0:01:46]} 22. Bxd5+ {[%clk 0:01:42]}  Kg7 {[%clk 0:01:47]} 23. Bxc4 {[%clk 0:01:35]}  Bxb2 {[%clk 0:01:46]} 24. Rb1 {[%clk 0:01:34]}  Bxa3 {[%clk 0:01:41]} 25. Rxb7+ {[%clk 0:01:34]}  Kg6 {[%clk 0:01:40]} 26. Bf7+ {[%clk 0:01:28]}  Kf6 {[%clk 0:01:39]} 27. Bd5 {[%clk 0:01:24]}  Rc8 {[%clk 0:01:37]} 28. Rxh7 {[%clk 0:01:21]}  Nb4 {[%clk 0:01:18]} 29. Bd4+ {[%clk 0:01:19]}  Kg6 {[%clk 0:01:19]} 30. Rg7+ {[%clk 0:01:19]}  Kh6 {[%clk 0:01:19]} 31. Rg8 {[%clk 0:00:36]}  Rxg8 {[%clk 0:00:32]} 32. Bxg8 {[%clk 0:00:37]}  a5 {[%clk 0:00:31]} 33. Bc3 {[%clk 0:00:24]}  a4 {[%clk 0:00:27]} 34. Bxb4 {[%clk 0:00:14]}  Bxb4 {[%clk 0:00:28]} 35. Kg2 {[%clk 0:00:13]}  Kg7 {[%clk 0:00:28]} 36. Ba2 {[%clk 0:00:12]}  Kf6 {[%clk 0:00:29]} 37. Kf3 {[%clk 0:00:12]}  Bc5 {[%clk 0:00:28]} 38. h3 {[%clk 0:00:12]}  a3 {[%clk 0:00:27]} 39. g4 {[%clk 0:00:12]}  fxg4+ {[%clk 0:00:25]} 40. hxg4 {[%clk 0:00:13]}  Bb4 {[%clk 0:00:20]} 41. Ke4 {[%clk 0:00:10]}  Bc3 {[%clk 0:00:20]} 42. g5+ {[%clk 0:00:09]}  Kg6 {[%clk 0:00:20]} 43. Kf3 {[%clk 0:00:09]}  Kf5 {[%clk 0:00:15]} 44. Bc4 {[%clk 0:00:09]}  Bd2 {[%clk 0:00:15]} 45. g6 {[%clk 0:00:04]}  Kxg6 {[%clk 0:00:14]} 46. Kg4 {[%clk 0:00:04]}  Kf6 {[%clk 0:00:14]} 47. Bb3 {[%clk 0:00:04]}  Ke7 {[%clk 0:00:13]} 48. c4 {[%clk 0:00:05]}  Kd6 {[%clk 0:00:13]} 49. f5 {[%clk 0:00:04]}  Bc3 {[%clk 0:00:13]} 50. Kg5 {[%clk 0:00:04]}  Ke7 {[%clk 0:00:11]} 51. Kg6 {[%clk 0:00:04]}  Bd4 {[%clk 0:00:11]} 52. Ba2 {[%clk 0:00:04]}  Bc3 {[%clk 0:00:12]} 53. c5 {[%clk 0:00:04]}  Bd4 {[%clk 0:00:11]} 54. c6 {[%clk 0:00:03]}  Kd6 {[%clk 0:00:12]} 55. f6 {[%clk 0:00:03]}  Bxf6 {[%clk 0:00:11]} 56. Kxf6 {[%clk 0:00:03]}  Kxc6 {[%clk 0:00:12]} 57. Ke5 {[%clk 0:00:03]}  Kc5 {[%clk 0:00:13]} 58. Ke4 {[%clk 0:00:03]}  Kb4 {[%clk 0:00:14]} 59. Kd3 {[%clk 0:00:03]}  Kc5 {[%clk 0:00:13]} 60. Kc3 {[%clk 0:00:04]}  Kb6 {[%clk 0:00:13]} 61. Kb4 {[%clk 0:00:04]}  Ka7 {[%clk 0:00:14]} 62. Kxa3 {[%clk 0:00:05]} 1/2-1/2


[Site "https://www.chess.com"]

[Event "Titled Tuesday Blitz February 14 Early 2023"]
[White "Lopez Del Alamo, Antonio"]
[Black "Robledo, Cristian"]
[WhiteFideId "2227339"]
[BlackFideId "133450"]
[WhiteElo "2280"]
[BlackElo "2270"]
[Result "0-1"]
[Round "03"]
[TimeControl "180+2"]
[Date "2023.02.15"]
[WhiteClock "0:00:01"]
[BlackClock "0:00:16"]

1. e4 {[%clk 0:02:59]}  c5 {[%clk 0:02:56]} 2. Nf3 {[%clk 0:02:47]}  e6 {[%clk 0:02:53]} 3. d3 {[%clk 0:02:39]}  a6 {[%clk 0:02:52]} 4. g3 {[%clk 0:02:18]}  b5 {[%clk 0:02:50]} 5. Bg2 {[%clk 0:02:12]}  Bb7 {[%clk 0:02:50]} 6. O-O {[%clk 0:02:09]}  Nf6 {[%clk 0:02:49]} 7. Re1 {[%clk 0:02:09]}  d6 {[%clk 0:02:49]} 8. a4 {[%clk 0:02:04]}  Nbd7 {[%clk 0:02:47]} 9. Nc3 {[%clk 0:02:00]}  b4 {[%clk 0:02:46]} 10. Nb1 {[%clk 0:01:58]}  Be7 {[%clk 0:02:45]} 11. Nbd2 {[%clk 0:01:58]}  O-O {[%clk 0:02:43]} 12. b3 {[%clk 0:01:58]}  e5 {[%clk 0:02:23]} 13. Nc4 {[%clk 0:01:52]}  a5 {[%clk 0:02:19]} 14. Nfd2 {[%clk 0:01:47]}  Ba6 {[%clk 0:02:17]} 15. Nf1 {[%clk 0:01:45]}  Nb6 {[%clk 0:02:04]} 16. Nfe3 {[%clk 0:01:41]}  Ra7 {[%clk 0:02:00]} 17. Bb2 {[%clk 0:01:40]}  Re8 {[%clk 0:01:59]} 18. Rf1 {[%clk 0:01:36]}  Bf8 {[%clk 0:01:55]} 19. f4 {[%clk 0:01:24]}  Bxc4 {[%clk 0:01:46]} 20. dxc4 {[%clk 0:01:16]}  exf4 {[%clk 0:01:41]} 21. Rxf4 {[%clk 0:01:11]}  Nbd7 {[%clk 0:01:14]} 22. Nf5 {[%clk 0:00:49]}  Ne5 {[%clk 0:01:10]} 23. h3 {[%clk 0:00:41]}  g6 {[%clk 0:01:08]} 24. Ne3 {[%clk 0:00:40]}  Bg7 {[%clk 0:01:08]} 25. Qe2 {[%clk 0:00:33]}  Rae7 {[%clk 0:01:07]} 26. Raf1 {[%clk 0:00:27]}  Nh5 {[%clk 0:00:57]} 27. Kh2 {[%clk 0:00:17]}  Bh6 {[%clk 0:00:29]} 28. Nd5 {[%clk 0:00:11]}  Bxf4 {[%clk 0:00:21]} 29. gxf4 {[%clk 0:00:09]}  Nc6 {[%clk 0:00:21]} 30. Qxh5 {[%clk 0:00:06]}  gxh5 {[%clk 0:00:18]} 31. Nf6+ {[%clk 0:00:05]}  Kh8 {[%clk 0:00:19]} 32. Nxe8+ {[%clk 0:00:03]}  Nd4 {[%clk 0:00:19]} 33. Nf6 {[%clk 0:00:01]}  Re6 {[%clk 0:00:16]} 34. Rg1 {[%clk 0:00:01]}  Qxf6 {[%clk 0:00:16]} 0-1


[Site "https://www.chess.com"]

[Event "Titled Tuesday Blitz February 14 Early 2023"]
[White "Zaichenko, Daria"]
[Black "Devaev, Alexander"]
[WhiteFideId "4197453"]
[BlackFideId "4169395"]
[WhiteElo "2104"]
[BlackElo "2325"]
[Result "0-1"]
[Round "03"]
[TimeControl "180+2"]
[Date "2023.02.15"]
[WhiteClock "0:00:02"]
[BlackClock "0:00:28"]

1. e4 {[%clk 0:02:57]}  c6 {[%clk 0:02:58]} 2. d4 {[%clk 0:02:57]}  d5 {[%clk 0:02:59]} 3. Nc3 {[%clk 0:02:57]}  dxe4 {[%clk 0:02:59]} 4. Nxe4 {[%clk 0:02:57]}  Bf5 {[%clk 0:03:00]} 5. Ng3 {[%clk 0:02:57]}  Bg6 {[%clk 0:03:00]} 6. h4 {[%clk 0:02:57]}  h6 {[%clk 0:03:01]} 7. h5 {[%clk 0:02:58]}  Bh7 {[%clk 0:03:01]} 8. Nf3 {[%clk 0:02:58]}  Nd7 {[%clk 0:03:01]} 9. Bd3 {[%clk 0:02:58]}  Bxd3 {[%clk 0:03:02]} 10. Qxd3 {[%clk 0:02:59]}  Qc7 {[%clk 0:03:03]} 11. Bd2 {[%clk 0:02:56]}  e6 {[%clk 0:03:03]} 12. O-O-O {[%clk 0:02:55]}  Ngf6 {[%clk 0:03:04]} 13. Kb1 {[%clk 0:02:55]}  O-O-O {[%clk 0:03:04]} 14. Qb3 {[%clk 0:02:51]}  Bd6 {[%clk 0:03:00]} 15. Ne2 {[%clk 0:02:47]}  c5 {[%clk 0:02:56]} 16. c4 {[%clk 0:02:44]}  cxd4 {[%clk 0:02:50]} 17. Nexd4 {[%clk 0:02:38]}  Nc5 {[%clk 0:02:50]} 18. Qa3 {[%clk 0:02:18]}  a6 {[%clk 0:02:32]} 19. Ba5 {[%clk 0:02:06]}  b6 {[%clk 0:02:32]} 20. Bb4 {[%clk 0:02:04]}  Kb7 {[%clk 0:02:28]} 21. Nb3 {[%clk 0:01:55]}  Nfe4 {[%clk 0:02:27]} 22. Rhe1 {[%clk 0:01:51]}  Nxb3 {[%clk 0:01:52]} 23. Qxb3 {[%clk 0:01:29]}  Bxb4 {[%clk 0:01:40]} 24. Rxe4 {[%clk 0:01:27]}  Rxd1+ {[%clk 0:01:34]} 25. Qxd1 {[%clk 0:01:27]}  Bc5 {[%clk 0:01:33]} 26. a3 {[%clk 0:01:23]}  Bxf2 {[%clk 0:01:30]} 27. Ne5 {[%clk 0:01:19]}  Bg3 {[%clk 0:01:18]} 28. Nd7 {[%clk 0:00:58]}  Rd8 {[%clk 0:00:57]} 29. Rd4 {[%clk 0:00:57]}  Kc8 {[%clk 0:00:58]} 30. Qf3 {[%clk 0:00:40]}  Rxd7 {[%clk 0:00:58]} 31. Qa8+ {[%clk 0:00:39]}  Qb8 {[%clk 0:00:58]} 32. Qc6+ {[%clk 0:00:38]}  Rc7 {[%clk 0:00:44]} 33. Qe8+ {[%clk 0:00:21]}  Kb7 {[%clk 0:00:44]} 34. Rd8 {[%clk 0:00:21]}  Qa7 {[%clk 0:00:45]} 35. b4 {[%clk 0:00:12]}  Bh4 {[%clk 0:00:35]} 36. Rd4 {[%clk 0:00:09]}  Bf6 {[%clk 0:00:29]} 37. Re4 {[%clk 0:00:05]}  Qb8 {[%clk 0:00:28]} 38. Qa4 {[%clk 0:00:03]}  Qc8 {[%clk 0:00:29]} 39. b5 {[%clk 0:00:03]}  a5 {[%clk 0:00:29]} 40. Qc2 {[%clk 0:00:03]}  Rc5 {[%clk 0:00:29]} 41. Qd3 {[%clk 0:00:03]}  Qd8 {[%clk 0:00:28]} 42. Qf3 {[%clk 0:00:02]}  Ka7 {[%clk 0:00:28]} 0-1


[Site "https://www.chess.com"]

[Event "Titled Tuesday Blitz February 14 Early 2023"]
[White "Martin, Lewis"]
[Black "Abdilkhair, Abilmansur"]
[WhiteFideId "410551"]
[BlackFideId "13716417"]
[WhiteElo "2135"]
[BlackElo "2268"]
[Result "1-0"]
[Round "03"]
[TimeControl "180+2"]
[Date "2023.02.15"]
[WhiteClock "0:00:15"]
[BlackClock "0:00:05"]

1. e4 {[%clk 0:03:00]}  e5 {[%clk 0:01:56]} 2. Nf3 {[%clk 0:03:00]}  Nc6 {[%clk 0:01:57]} 3. Bb5 {[%clk 0:03:00]}  a6 {[%clk 0:01:57]} 4. Ba4 {[%clk 0:03:00]}  Nf6 {[%clk 0:01:56]} 5. O-O {[%clk 0:02:59]}  b5 {[%clk 0:01:56]} 6. Bb3 {[%clk 0:02:59]}  Be7 {[%clk 0:01:57]} 7. Re1 {[%clk 0:02:58]}  d6 {[%clk 0:01:58]} 8. c3 {[%clk 0:02:57]}  O-O {[%clk 0:01:57]} 9. a4 {[%clk 0:02:56]}  Bg4 {[%clk 0:01:55]} 10. h3 {[%clk 0:02:51]}  Bh5 {[%clk 0:01:54]} 11. d3 {[%clk 0:02:48]}  Rb8 {[%clk 0:01:48]} 12. Nbd2 {[%clk 0:02:46]}  b4 {[%clk 0:01:45]} 13. Nf1 {[%clk 0:02:44]}  bxc3 {[%clk 0:01:41]} 14. bxc3 {[%clk 0:02:45]}  Bxf3 {[%clk 0:01:41]} 15. gxf3 {[%clk 0:02:43]}  Nh5 {[%clk 0:01:29]} 16. Bd5 {[%clk 0:02:31]}  Na5 {[%clk 0:01:08]} 17. Ng3 {[%clk 0:02:22]}  Nf4 {[%clk 0:01:07]} 18. Bxf4 {[%clk 0:02:20]}  exf4 {[%clk 0:01:08]} 19. Nf5 {[%clk 0:02:19]}  c6 {[%clk 0:01:04]} 20. Ba2 {[%clk 0:02:18]}  Bf6 {[%clk 0:01:01]} 21. Qd2 {[%clk 0:02:17]}  Nb3 {[%clk 0:00:54]} 22. Bxb3 {[%clk 0:02:13]}  Rxb3 {[%clk 0:00:55]} 23. d4 {[%clk 0:02:09]}  g6 {[%clk 0:00:39]} 24. Nh6+ {[%clk 0:02:06]}  Kg7 {[%clk 0:00:39]} 25. Ng4 {[%clk 0:02:07]}  Bg5 {[%clk 0:00:38]} 26. h4 {[%clk 0:01:49]}  Bxh4 {[%clk 0:00:36]} 27. Qxf4 {[%clk 0:01:49]}  Bg5 {[%clk 0:00:36]} 28. Qg3 {[%clk 0:01:42]}  h5 {[%clk 0:00:36]} 29. Ne3 {[%clk 0:01:40]}  Rxc3 {[%clk 0:00:36]} 30. Rac1 {[%clk 0:01:36]}  Rxc1 {[%clk 0:00:31]} 31. Rxc1 {[%clk 0:01:37]}  Qf6 {[%clk 0:00:17]} 32. e5 {[%clk 0:01:32]}  dxe5 {[%clk 0:00:14]} 33. dxe5 {[%clk 0:01:32]}  Qe7 {[%clk 0:00:11]} 34. f4 {[%clk 0:01:31]}  Bh4 {[%clk 0:00:11]} 35. Qf3 {[%clk 0:01:30]}  c5 {[%clk 0:00:10]} 36. Qd5 {[%clk 0:01:15]}  f6 {[%clk 0:00:10]} 37. e6 {[%clk 0:01:09]}  Rd8 {[%clk 0:00:08]} 38. Qxc5 {[%clk 0:00:43]}  Qxe6 {[%clk 0:00:08]} 39. f5 {[%clk 0:00:39]}  Qe5 {[%clk 0:00:07]} 40. Qa7+ {[%clk 0:00:31]}  Kh6 {[%clk 0:00:06]} 41. Rc7 {[%clk 0:00:27]}  Rd2 {[%clk 0:00:06]} 42. Rh7+ {[%clk 0:00:19]}  Kg5 {[%clk 0:00:06]} 43. Rxh5+ {[%clk 0:00:15]}  Kxh5 {[%clk 0:00:06]} 44. Qh7+ {[%clk 0:00:15]}  Kg5 {[%clk 0:00:05]} 45. Qxg6+ {[%clk 0:00:15]}  Kf4 {[%clk 0:00:05]} 46. Qg4# {[%clk 0:00:15]} 1-0


[Site "https://www.chess.com"]